{"text_format":"3","workbook":"xlsx","n_sheets":3,"sheets":["Měsíční rozpočet","Měsíční výdaje","Dodatečná data"],"not_rendered":{"charts":1,"defined_names":4,"pivot_tables":2},"read":"whole","date_system":"1900"}

{"sheet":"Měsíční rozpočet","index":0,"n_rows":34,"n_cols":14,"rows_kept":34,"merged":[[7,1,10,1],[7,5,10,5],[7,6,10,6],[12,1,16,1],[12,5,16,5],[12,6,16,6]]}
[null,"Přehled rozpočtu",{"$nulls":7},"Souhrn rozpočtu"]
[null,"Zůstatek"]
[null,"Předpokládaný zůstatek","(předpokládané příjmy minus výdaje)",{"$nulls":3},{"$f":"D17-SUM(PodrobnostiORozpočtu[Předpokládané náklady])","v":{"v":1585,"d":"1,585 Kč"}}]
[null,"Skutečný zůstatek ","(skutečné příjmy minus výdaje)",{"$nulls":3},{"$f":"D11-SUM(PodrobnostiORozpočtu[Skutečné náklady])","v":{"v":1740,"d":"1,740 Kč"}}]
[null,"Rozdíl","(skutečnost minus předpoklad)",{"$nulls":3},{"$f":"G4-G3","v":{"v":155,"d":"155 Kč"}}]
[]
[null,"Příjmy",{"$nulls":3},"Výdaje",{"$nulls":3},"Klikněte pravým tlačítkem na kontingenční tabulku níže a potom klikněte na Obnovit pro aktualizaci tabulky"]
[null,"SKUTEČNÉ","Příjem 1",{"v":5800,"d":"5,800 Kč"},null,"SKUTEČNÉ",{"$f":"SUM(PodrobnostiORozpočtu[Skutečné náklady])","v":{"v":7860,"d":"7,860 Kč"}}]
[null,null,"Příjem 2",{"v":2300,"d":"2,300 Kč"},{"$nulls":6},"Kategorie","Předpokládané náklady ","Skutečné náklady ","Rozdíl "]
[null,null,"Jiné příjmy",{"v":1500,"d":"1,500 Kč"},{"$nulls":6},"Děti",{"v":140,"d":"140 Kč"},{"v":140,"d":"140 Kč"},{"v":0,"d":"0 Kč"}]
[null,null,"Celkové příjmy",{"$f":"SUM(D8:D10)","v":{"v":9600,"d":"9,600 Kč"}}]
[{"$nulls":10},"Zábava",{"v":400,"d":"400 Kč"},{"v":358,"d":"358 Kč"},{"v":42,"d":"42 Kč"}]
[null,"PŘEDPOKLÁDANÉ",{"$nulls":3},"PŘEDPOKLÁDANÉ",{"$f":"SUM(PodrobnostiORozpočtu[Předpokládané náklady])","v":{"v":7915,"d":"7,915 Kč"}}]
[null,null,"Příjem 1",{"v":6000,"d":"6,000 Kč"},{"$nulls":6},"Jídlo",{"v":1100,"d":"1,100 Kč"},{"v":1320,"d":"1,320 Kč"},{"v":-220,"d":"-220 Kč"}]
[null,null,"Příjem 2",{"v":1000,"d":"1,000 Kč"}]
[null,null,"Jiné příjmy",{"v":2500,"d":"2,500 Kč"},{"$nulls":6},"Dárky a charita",{"v":100,"d":"100 Kč"},{"v":125,"d":"125 Kč"},{"v":-25,"d":"-25 Kč"}]
[null,null,"Celkové příjmy",{"$f":"SUM(D14:D16)","v":{"v":9500,"d":"9,500 Kč"}}]
[{"$nulls":10},"Bydlení",{"v":2830,"d":"2,830 Kč"},{"v":2702,"d":"2,702 Kč"},{"v":128,"d":"128 Kč"}]
[]
[{"$nulls":10},"Pojištění",{"v":900,"d":"900 Kč"},{"v":900,"d":"900 Kč"},{"v":0,"d":"0 Kč"}]
[]
[{"$nulls":10},"Půjčky",{"v":200,"d":"200 Kč"},{"v":200,"d":"200 Kč"},{"v":0,"d":"0 Kč"}]
[]
[{"$nulls":10},"Osobní péče",{"v":150,"d":"150 Kč"},{"v":140,"d":"140 Kč"},{"v":10,"d":"10 Kč"}]
[]
[{"$nulls":10},"Domácí zvířata",{"v":170,"d":"170 Kč"},{"v":100,"d":"100 Kč"},{"v":70,"d":"70 Kč"}]
[]
[{"$nulls":10},"Spoření nebo investice",{"v":200,"d":"200 Kč"},{"v":200,"d":"200 Kč"},{"v":0,"d":"0 Kč"}]
[]
[{"$nulls":10},"Daně",{"v":300,"d":"300 Kč"},{"v":300,"d":"300 Kč"},{"v":0,"d":"0 Kč"}]
[]
[{"$nulls":10},"Doprava",{"v":1425,"d":"1,425 Kč"},{"v":1375,"d":"1,375 Kč"},{"v":50,"d":"50 Kč"}]
[]
[{"$nulls":10},"Celkový součet",{"v":7915,"d":"7,915 Kč"},{"v":7860,"d":"7,860 Kč"},{"v":55,"d":"55 Kč"}]

{"sheet":"Měsíční výdaje","index":1,"n_rows":62,"n_cols":7,"rows_kept":62}
[null,"Měsíční výdaje"]
[null,"Popis","Kategorie","Předpokládané náklady","Skutečné náklady","Rozdíl","Přehled skutečných nákladů"]
[null,"Mimoškolní aktivity","Děti",{"v":40,"d":"40 Kč"},{"v":40,"d":"40 Kč"},{"$f":"PodrobnostiORozpočtu[[#This Row],[Předpokládané náklady]]-PodrobnostiORozpočtu[[#This Row],[Skutečné náklady]]","v":{"v":0,"d":"0 Kč"}},{"$f":"PodrobnostiORozpočtu[[#This Row],[Skutečné náklady]]","v":{"v":40,"d":"40 Kč"}}]
[null,"Zdravotní péče","Děti",null,null,{"$f":"PodrobnostiORozpočtu[[#This Row],[Předpokládané náklady]]-PodrobnostiORozpočtu[[#This Row],[Skutečné náklady]]","v":{"v":0,"d":"0 Kč"}},{"$f":"PodrobnostiORozpočtu[[#This Row],[Skutečné náklady]]","v":{"v":0,"d":"0 Kč"}}]
[null,"Školní pomůcky","Děti",null,null,{"$f":"PodrobnostiORozpočtu[[#This Row],[Předpokládané náklady]]-PodrobnostiORozpočtu[[#This Row],[Skutečné náklady]]","v":{"v":0,"d":"0 Kč"}},{"$f":"PodrobnostiORozpočtu[[#This Row],[Skutečné náklady]]","v":{"v":0,"d":"0 Kč"}}]
[null,"Školné","Děti",{"v":100,"d":"100 Kč"},{"v":100,"d":"100 Kč"},{"$f":"PodrobnostiORozpočtu[[#This Row],[Předpokládané náklady]]-PodrobnostiORozpočtu[[#This Row],[Skutečné náklady]]","v":{"v":0,"d":"0 Kč"}},{"$f":"PodrobnostiORozpočtu[[#This Row],[Skutečné náklady]]","v":{"v":100,"d":"100 Kč"}}]
[null,"Koncerty","Zábava",{"v":50,"d":"50 Kč"},{"v":40,"d":"40 Kč"},{"$f":"PodrobnostiORozpočtu[[#This Row],[Předpokládané náklady]]-PodrobnostiORozpočtu[[#This Row],[Skutečné náklady]]","v":{"v":10,"d":"10 Kč"}},{"$f":"PodrobnostiORozpočtu[[#This Row],[Skutečné náklady]]","v":{"v":40,"d":"40 Kč"}}]
[null,"Divadlo","Zábava",{"v":200,"d":"200 Kč"},{"v":150,"d":"150 Kč"},{"$f":"PodrobnostiORozpočtu[[#This Row],[Předpokládané náklady]]-PodrobnostiORozpočtu[[#This Row],[Skutečné náklady]]","v":{"v":50,"d":"50 Kč"}},{"$f":"PodrobnostiORozpočtu[[#This Row],[Skutečné náklady]]","v":{"v":150,"d":"150 Kč"}}]
[null,"Filmy","Zábava",{"v":50,"d":"50 Kč"},{"v":28,"d":"28 Kč"},{"$f":"PodrobnostiORozpočtu[[#This Row],[Předpokládané náklady]]-PodrobnostiORozpočtu[[#This Row],[Skutečné náklady]]","v":{"v":22,"d":"22 Kč"}},{"$f":"PodrobnostiORozpočtu[[#This Row],[Skutečné náklady]]","v":{"v":28,"d":"28 Kč"}}]
[null,"Hudba (CD, stahovaná hudba atd.)","Zábava",{"v":50,"d":"50 Kč"},{"v":30,"d":"30 Kč"},{"$f":"PodrobnostiORozpočtu[[#This Row],[Předpokládané náklady]]-PodrobnostiORozpočtu[[#This Row],[Skutečné náklady]]","v":{"v":20,"d":"20 Kč"}},{"$f":"PodrobnostiORozpočtu[[#This Row],[Skutečné náklady]]","v":{"v":30,"d":"30 Kč"}}]
[null,"Sportovní akce","Zábava",{"v":0,"d":"0 Kč"},{"v":40,"d":"40 Kč"},{"$f":"PodrobnostiORozpočtu[[#This Row],[Předpokládané náklady]]-PodrobnostiORozpočtu[[#This Row],[Skutečné náklady]]","v":{"v":-40,"d":"-40 Kč"}},{"$f":"PodrobnostiORozpočtu[[#This Row],[Skutečné náklady]]","v":{"v":40,"d":"40 Kč"}}]
[null,"Video/DVD (nákup)","Zábava",{"v":20,"d":"20 Kč"},{"v":50,"d":"50 Kč"},{"$f":"PodrobnostiORozpočtu[[#This Row],[Předpokládané náklady]]-PodrobnostiORozpočtu[[#This Row],[Skutečné náklady]]","v":{"v":-30,"d":"-30 Kč"}},{"$f":"PodrobnostiORozpočtu[[#This Row],[Skutečné náklady]]","v":{"v":50,"d":"50 Kč"}}]
[null,"Video/DVD (půjčování)","Zábava",{"v":30,"d":"30 Kč"},{"v":20,"d":"20 Kč"},{"$f":"PodrobnostiORozpočtu[[#This Row],[Předpokládané náklady]]-PodrobnostiORozpočtu[[#This Row],[Skutečné náklady]]","v":{"v":10,"d":"10 Kč"}},{"$f":"PodrobnostiORozpočtu[[#This Row],[Skutečné náklady]]","v":{"v":20,"d":"20 Kč"}}]
[null,"Večeře v restauraci","Jídlo",{"v":1000,"d":"1,000 Kč"},{"v":1200,"d":"1,200 Kč"},{"$f":"PodrobnostiORozpočtu[[#This Row],[Předpokládané náklady]]-PodrobnostiORozpočtu[[#This Row],[Skutečné náklady]]","v":{"v":-200,"d":"-200 Kč"}},{"$f":"PodrobnostiORozpočtu[[#This Row],[Skutečné náklady]]","v":{"v":1200,"d":"1,200 Kč"}}]
[null,"Potraviny","Jídlo",{"v":100,"d":"100 Kč"},{"v":120,"d":"120 Kč"},{"$f":"PodrobnostiORozpočtu[[#This Row],[Předpokládané náklady]]-PodrobnostiORozpočtu[[#This Row],[Skutečné náklady]]","v":{"v":-20,"d":"-20 Kč"}},{"$f":"PodrobnostiORozpočtu[[#This Row],[Skutečné náklady]]","v":{"v":120,"d":"120 Kč"}}]
[null,"Charita 1","Dárky a charita",{"v":75,"d":"75 Kč"},{"v":100,"d":"100 Kč"},{"$f":"PodrobnostiORozpočtu[[#This Row],[Předpokládané náklady]]-PodrobnostiORozpočtu[[#This Row],[Skutečné náklady]]","v":{"v":-25,"d":"-25 Kč"}},{"$f":"PodrobnostiORozpočtu[[#This Row],[Skutečné náklady]]","v":{"v":100,"d":"100 Kč"}}]
[null,"Charita 2","Dárky a charita",{"v":25,"d":"25 Kč"},{"v":25,"d":"25 Kč"},{"$f":"PodrobnostiORozpočtu[[#This Row],[Předpokládané náklady]]-PodrobnostiORozpočtu[[#This Row],[Skutečné náklady]]","v":{"v":0,"d":"0 Kč"}},{"$f":"PodrobnostiORozpočtu[[#This Row],[Skutečné náklady]]","v":{"v":25,"d":"25 Kč"}}]
[null,"Dárek 1","Dárky a charita",null,null,{"$f":"PodrobnostiORozpočtu[[#This Row],[Předpokládané náklady]]-PodrobnostiORozpočtu[[#This Row],[Skutečné náklady]]","v":{"v":0,"d":"0 Kč"}},{"$f":"PodrobnostiORozpočtu[[#This Row],[Skutečné náklady]]","v":{"v":0,"d":"0 Kč"}}]
[null,"Dárek 2","Dárky a charita",null,null,{"$f":"PodrobnostiORozpočtu[[#This Row],[Předpokládané náklady]]-PodrobnostiORozpočtu[[#This Row],[Skutečné náklady]]","v":{"v":0,"d":"0 Kč"}},{"$f":"PodrobnostiORozpočtu[[#This Row],[Skutečné náklady]]","v":{"v":0,"d":"0 Kč"}}]
[null,"Kabel/satelit","Bydlení",{"v":100,"d":"100 Kč"},{"v":100,"d":"100 Kč"},{"$f":"PodrobnostiORozpočtu[[#This Row],[Předpokládané náklady]]-PodrobnostiORozpočtu[[#This Row],[Skutečné náklady]]","v":{"v":0,"d":"0 Kč"}},{"$f":"PodrobnostiORozpočtu[[#This Row],[Skutečné náklady]]","v":{"v":100,"d":"100 Kč"}}]
[null,"Elektřina","Bydlení",{"v":45,"d":"45 Kč"},{"v":50,"d":"50 Kč"},{"$f":"PodrobnostiORozpočtu[[#This Row],[Předpokládané náklady]]-PodrobnostiORozpočtu[[#This Row],[Skutečné náklady]]","v":{"v":-5,"d":"-5 Kč"}},{"$f":"PodrobnostiORozpočtu[[#This Row],[Skutečné náklady]]","v":{"v":50,"d":"50 Kč"}}]
[null,"Plyn","Bydlení",{"v":300,"d":"300 Kč"},{"v":400,"d":"400 Kč"},{"$f":"PodrobnostiORozpočtu[[#This Row],[Předpokládané náklady]]-PodrobnostiORozpočtu[[#This Row],[Skutečné náklady]]","v":{"v":-100,"d":"-100 Kč"}},{"$f":"PodrobnostiORozpočtu[[#This Row],[Skutečné náklady]]","v":{"v":400,"d":"400 Kč"}}]
[null,"Úklid domácnosti","Bydlení",{"v":200,"d":"200 Kč"},null,{"$f":"PodrobnostiORozpočtu[[#This Row],[Předpokládané náklady]]-PodrobnostiORozpočtu[[#This Row],[Skutečné náklady]]","v":{"v":200,"d":"200 Kč"}},{"$f":"PodrobnostiORozpočtu[[#This Row],[Skutečné náklady]]","v":{"v":0,"d":"0 Kč"}}]
[null,"Údržba","Bydlení",{"v":200,"d":"200 Kč"},{"v":150,"d":"150 Kč"},{"$f":"PodrobnostiORozpočtu[[#This Row],[Předpokládané náklady]]-PodrobnostiORozpočtu[[#This Row],[Skutečné náklady]]","v":{"v":50,"d":"50 Kč"}},{"$f":"PodrobnostiORozpočtu[[#This Row],[Skutečné náklady]]","v":{"v":150,"d":"150 Kč"}}]
[null,"Hypotéka nebo nájem","Bydlení",{"v":1700,"d":"1,700 Kč"},{"v":1700,"d":"1,700 Kč"},{"$f":"PodrobnostiORozpočtu[[#This Row],[Předpokládané náklady]]-PodrobnostiORozpočtu[[#This Row],[Skutečné náklady]]","v":{"v":0,"d":"0 Kč"}},{"$f":"PodrobnostiORozpočtu[[#This Row],[Skutečné náklady]]","v":{"v":1700,"d":"1,700 Kč"}}]
[null,"Zemní plyn / nafta","Bydlení",null,null,{"$f":"PodrobnostiORozpočtu[[#This Row],[Předpokládané náklady]]-PodrobnostiORozpočtu[[#This Row],[Skutečné náklady]]","v":{"v":0,"d":"0 Kč"}},{"$f":"PodrobnostiORozpočtu[[#This Row],[Skutečné náklady]]","v":{"v":0,"d":"0 Kč"}}]
[null,"Připojení k internetu","Bydlení",{"v":100,"d":"100 Kč"},{"v":100,"d":"100 Kč"},{"$f":"PodrobnostiORozpočtu[[#This Row],[Předpokládané náklady]]-PodrobnostiORozpočtu[[#This Row],[Skutečné náklady]]","v":{"v":0,"d":"0 Kč"}},{"$f":"PodrobnostiORozpočtu[[#This Row],[Skutečné náklady]]","v":{"v":100,"d":"100 Kč"}}]
[null,"Telefon (mobilní)","Bydlení",{"v":60,"d":"60 Kč"},{"v":60,"d":"60 Kč"},{"$f":"PodrobnostiORozpočtu[[#This Row],[Předpokládané náklady]]-PodrobnostiORozpočtu[[#This Row],[Skutečné náklady]]","v":{"v":0,"d":"0 Kč"}},{"$f":"PodrobnostiORozpočtu[[#This Row],[Skutečné náklady]]","v":{"v":60,"d":"60 Kč"}}]
[null,"Telefon (pevná linka)","Bydlení",{"v":35,"d":"35 Kč"},{"v":39,"d":"39 Kč"},{"$f":"PodrobnostiORozpočtu[[#This Row],[Předpokládané náklady]]-PodrobnostiORozpočtu[[#This Row],[Skutečné náklady]]","v":{"v":-4,"d":"-4 Kč"}},{"$f":"PodrobnostiORozpočtu[[#This Row],[Skutečné náklady]]","v":{"v":39,"d":"39 Kč"}}]
[null,"Domácí potřeby","Bydlení",{"v":40,"d":"40 Kč"},{"v":55,"d":"55 Kč"},{"$f":"PodrobnostiORozpočtu[[#This Row],[Předpokládané náklady]]-PodrobnostiORozpočtu[[#This Row],[Skutečné náklady]]","v":{"v":-15,"d":"-15 Kč"}},{"$f":"PodrobnostiORozpočtu[[#This Row],[Skutečné náklady]]","v":{"v":55,"d":"55 Kč"}}]
[null,"Poplatky za odpad a recyklaci","Bydlení",{"v":25,"d":"25 Kč"},{"v":22,"d":"22 Kč"},{"$f":"PodrobnostiORozpočtu[[#This Row],[Předpokládané náklady]]-PodrobnostiORozpočtu[[#This Row],[Skutečné náklady]]","v":{"v":3,"d":"3 Kč"}},{"$f":"PodrobnostiORozpočtu[[#This Row],[Skutečné náklady]]","v":{"v":22,"d":"22 Kč"}}]
[null,"Vodné a stočné","Bydlení",{"v":25,"d":"25 Kč"},{"v":26,"d":"26 Kč"},{"$f":"PodrobnostiORozpočtu[[#This Row],[Předpokládané náklady]]-PodrobnostiORozpočtu[[#This Row],[Skutečné náklady]]","v":{"v":-1,"d":"-1 Kč"}},{"$f":"PodrobnostiORozpočtu[[#This Row],[Skutečné náklady]]","v":{"v":26,"d":"26 Kč"}}]
[null,"Zdraví","Pojištění",{"v":400,"d":"400 Kč"},{"v":400,"d":"400 Kč"},{"$f":"PodrobnostiORozpočtu[[#This Row],[Předpokládané náklady]]-PodrobnostiORozpočtu[[#This Row],[Skutečné náklady]]","v":{"v":0,"d":"0 Kč"}},{"$f":"PodrobnostiORozpočtu[[#This Row],[Skutečné náklady]]","v":{"v":400,"d":"400 Kč"}}]
[null,"Domácnost","Pojištění",{"v":400,"d":"400 Kč"},{"v":400,"d":"400 Kč"},{"$f":"PodrobnostiORozpočtu[[#This Row],[Předpokládané náklady]]-PodrobnostiORozpočtu[[#This Row],[Skutečné náklady]]","v":{"v":0,"d":"0 Kč"}},{"$f":"PodrobnostiORozpočtu[[#This Row],[Skutečné náklady]]","v":{"v":400,"d":"400 Kč"}}]
[null,"Životní","Pojištění",{"v":100,"d":"100 Kč"},{"v":100,"d":"100 Kč"},{"$f":"PodrobnostiORozpočtu[[#This Row],[Předpokládané náklady]]-PodrobnostiORozpočtu[[#This Row],[Skutečné náklady]]","v":{"v":0,"d":"0 Kč"}},{"$f":"PodrobnostiORozpočtu[[#This Row],[Skutečné náklady]]","v":{"v":100,"d":"100 Kč"}}]
[null,"Kreditní karta 1","Půjčky",{"v":200,"d":"200 Kč"},{"v":200,"d":"200 Kč"},{"$f":"PodrobnostiORozpočtu[[#This Row],[Předpokládané náklady]]-PodrobnostiORozpočtu[[#This Row],[Skutečné náklady]]","v":{"v":0,"d":"0 Kč"}},{"$f":"PodrobnostiORozpočtu[[#This Row],[Skutečné náklady]]","v":{"v":200,"d":"200 Kč"}}]
[null,"Kreditní karta 2","Půjčky",null,null,{"$f":"PodrobnostiORozpočtu[[#This Row],[Předpokládané náklady]]-PodrobnostiORozpočtu[[#This Row],[Skutečné náklady]]","v":{"v":0,"d":"0 Kč"}},{"$f":"PodrobnostiORozpočtu[[#This Row],[Skutečné náklady]]","v":{"v":0,"d":"0 Kč"}}]
[null,"Kreditní karta 3","Půjčky",null,null,{"$f":"PodrobnostiORozpočtu[[#This Row],[Předpokládané náklady]]-PodrobnostiORozpočtu[[#This Row],[Skutečné náklady]]","v":{"v":0,"d":"0 Kč"}},{"$f":"PodrobnostiORozpočtu[[#This Row],[Skutečné náklady]]","v":{"v":0,"d":"0 Kč"}}]
[null,"Osobní","Půjčky",null,null,{"$f":"PodrobnostiORozpočtu[[#This Row],[Předpokládané náklady]]-PodrobnostiORozpočtu[[#This Row],[Skutečné náklady]]","v":{"v":0,"d":"0 Kč"}},{"$f":"PodrobnostiORozpočtu[[#This Row],[Skutečné náklady]]","v":{"v":0,"d":"0 Kč"}}]
[null,"Studentské","Půjčky",null,null,{"$f":"PodrobnostiORozpočtu[[#This Row],[Předpokládané náklady]]-PodrobnostiORozpočtu[[#This Row],[Skutečné náklady]]","v":{"v":0,"d":"0 Kč"}},{"$f":"PodrobnostiORozpočtu[[#This Row],[Skutečné náklady]]","v":{"v":0,"d":"0 Kč"}}]
[null,"Oblečení","Osobní péče",{"v":150,"d":"150 Kč"},{"v":140,"d":"140 Kč"},{"$f":"PodrobnostiORozpočtu[[#This Row],[Předpokládané náklady]]-PodrobnostiORozpočtu[[#This Row],[Skutečné náklady]]","v":{"v":10,"d":"10 Kč"}},{"$f":"PodrobnostiORozpočtu[[#This Row],[Skutečné náklady]]","v":{"v":140,"d":"140 Kč"}}]
[null,"Čistírna","Osobní péče",null,null,{"$f":"PodrobnostiORozpočtu[[#This Row],[Předpokládané náklady]]-PodrobnostiORozpočtu[[#This Row],[Skutečné náklady]]","v":{"v":0,"d":"0 Kč"}},{"$f":"PodrobnostiORozpočtu[[#This Row],[Skutečné náklady]]","v":{"v":0,"d":"0 Kč"}}]
[null,"Kadeřnictví a manikúra","Osobní péče",null,null,{"$f":"PodrobnostiORozpočtu[[#This Row],[Předpokládané náklady]]-PodrobnostiORozpočtu[[#This Row],[Skutečné náklady]]","v":{"v":0,"d":"0 Kč"}},{"$f":"PodrobnostiORozpočtu[[#This Row],[Skutečné náklady]]","v":{"v":0,"d":"0 Kč"}}]
[null,"Fitness","Osobní péče",null,null,{"$f":"PodrobnostiORozpočtu[[#This Row],[Předpokládané náklady]]-PodrobnostiORozpočtu[[#This Row],[Skutečné náklady]]","v":{"v":0,"d":"0 Kč"}},{"$f":"PodrobnostiORozpočtu[[#This Row],[Skutečné náklady]]","v":{"v":0,"d":"0 Kč"}}]
[null,"Zdravotní péče","Osobní péče",null,null,{"$f":"PodrobnostiORozpočtu[[#This Row],[Předpokládané náklady]]-PodrobnostiORozpočtu[[#This Row],[Skutečné náklady]]","v":{"v":0,"d":"0 Kč"}},{"$f":"PodrobnostiORozpočtu[[#This Row],[Skutečné náklady]]","v":{"v":0,"d":"0 Kč"}}]
[null,"Jídlo","Domácí zvířata",{"v":150,"d":"150 Kč"},{"v":75,"d":"75 Kč"},{"$f":"PodrobnostiORozpočtu[[#This Row],[Předpokládané náklady]]-PodrobnostiORozpočtu[[#This Row],[Skutečné náklady]]","v":{"v":75,"d":"75 Kč"}},{"$f":"PodrobnostiORozpočtu[[#This Row],[Skutečné náklady]]","v":{"v":75,"d":"75 Kč"}}]
[null,"Péče o vzhled","Domácí zvířata",{"v":20,"d":"20 Kč"},{"v":25,"d":"25 Kč"},{"$f":"PodrobnostiORozpočtu[[#This Row],[Předpokládané náklady]]-PodrobnostiORozpočtu[[#This Row],[Skutečné náklady]]","v":{"v":-5,"d":"-5 Kč"}},{"$f":"PodrobnostiORozpočtu[[#This Row],[Skutečné náklady]]","v":{"v":25,"d":"25 Kč"}}]
[null,"Zdravotní péče","Domácí zvířata",null,null,{"$f":"PodrobnostiORozpočtu[[#This Row],[Předpokládané náklady]]-PodrobnostiORozpočtu[[#This Row],[Skutečné náklady]]","v":{"v":0,"d":"0 Kč"}},{"$f":"PodrobnostiORozpočtu[[#This Row],[Skutečné náklady]]","v":{"v":0,"d":"0 Kč"}}]
[null,"Hračky","Domácí zvířata",null,null,{"$f":"PodrobnostiORozpočtu[[#This Row],[Předpokládané náklady]]-PodrobnostiORozpočtu[[#This Row],[Skutečné náklady]]","v":{"v":0,"d":"0 Kč"}},{"$f":"PodrobnostiORozpočtu[[#This Row],[Skutečné náklady]]","v":{"v":0,"d":"0 Kč"}}]
[null,"Investiční účet","Spoření nebo investice",{"v":200,"d":"200 Kč"},{"v":200,"d":"200 Kč"},{"$f":"PodrobnostiORozpočtu[[#This Row],[Předpokládané náklady]]-PodrobnostiORozpočtu[[#This Row],[Skutečné náklady]]","v":{"v":0,"d":"0 Kč"}},{"$f":"PodrobnostiORozpočtu[[#This Row],[Skutečné náklady]]","v":{"v":200,"d":"200 Kč"}}]
[null,"Penzijní spoření","Spoření nebo investice",null,null,{"$f":"PodrobnostiORozpočtu[[#This Row],[Předpokládané náklady]]-PodrobnostiORozpočtu[[#This Row],[Skutečné náklady]]","v":{"v":0,"d":"0 Kč"}},{"$f":"PodrobnostiORozpočtu[[#This Row],[Skutečné náklady]]","v":{"v":0,"d":"0 Kč"}}]
[null,"Daň z příjmů","Daně",{"v":300,"d":"300 Kč"},{"v":300,"d":"300 Kč"},{"$f":"PodrobnostiORozpočtu[[#This Row],[Předpokládané náklady]]-PodrobnostiORozpočtu[[#This Row],[Skutečné náklady]]","v":{"v":0,"d":"0 Kč"}},{"$f":"PodrobnostiORozpočtu[[#This Row],[Skutečné náklady]]","v":{"v":300,"d":"300 Kč"}}]
[null,"Obecní poplatky","Daně",null,null,{"$f":"PodrobnostiORozpočtu[[#This Row],[Předpokládané náklady]]-PodrobnostiORozpočtu[[#This Row],[Skutečné náklady]]","v":{"v":0,"d":"0 Kč"}},{"$f":"PodrobnostiORozpočtu[[#This Row],[Skutečné náklady]]","v":{"v":0,"d":"0 Kč"}}]
[null,"Daň z nemovitostí","Daně",null,null,{"$f":"PodrobnostiORozpočtu[[#This Row],[Předpokládané náklady]]-PodrobnostiORozpočtu[[#This Row],[Skutečné náklady]]","v":{"v":0,"d":"0 Kč"}},{"$f":"PodrobnostiORozpočtu[[#This Row],[Skutečné náklady]]","v":{"v":0,"d":"0 Kč"}}]
[null,"Autobusy/taxi","Doprava",{"v":100,"d":"100 Kč"},{"v":150,"d":"150 Kč"},{"$f":"PodrobnostiORozpočtu[[#This Row],[Předpokládané náklady]]-PodrobnostiORozpočtu[[#This Row],[Skutečné náklady]]","v":{"v":-50,"d":"-50 Kč"}},{"$f":"PodrobnostiORozpočtu[[#This Row],[Skutečné náklady]]","v":{"v":150,"d":"150 Kč"}}]
[null,"Benzín","Doprava",{"v":450,"d":"450 Kč"},{"v":400,"d":"400 Kč"},{"$f":"PodrobnostiORozpočtu[[#This Row],[Předpokládané náklady]]-PodrobnostiORozpočtu[[#This Row],[Skutečné náklady]]","v":{"v":50,"d":"50 Kč"}},{"$f":"PodrobnostiORozpočtu[[#This Row],[Skutečné náklady]]","v":{"v":400,"d":"400 Kč"}}]
[null,"Pojištění","Doprava",{"v":300,"d":"300 Kč"},{"v":300,"d":"300 Kč"},{"$f":"PodrobnostiORozpočtu[[#This Row],[Předpokládané náklady]]-PodrobnostiORozpočtu[[#This Row],[Skutečné náklady]]","v":{"v":0,"d":"0 Kč"}},{"$f":"PodrobnostiORozpočtu[[#This Row],[Skutečné náklady]]","v":{"v":300,"d":"300 Kč"}}]
[null,"Poplatky ","Doprava",{"v":25,"d":"25 Kč"},{"v":25,"d":"25 Kč"},{"$f":"PodrobnostiORozpočtu[[#This Row],[Předpokládané náklady]]-PodrobnostiORozpočtu[[#This Row],[Skutečné náklady]]","v":{"v":0,"d":"0 Kč"}},{"$f":"PodrobnostiORozpočtu[[#This Row],[Skutečné náklady]]","v":{"v":25,"d":"25 Kč"}}]
[null,"Údržba","Doprava",{"v":100,"d":"100 Kč"},{"v":50,"d":"50 Kč"},{"$f":"PodrobnostiORozpočtu[[#This Row],[Předpokládané náklady]]-PodrobnostiORozpočtu[[#This Row],[Skutečné náklady]]","v":{"v":50,"d":"50 Kč"}},{"$f":"PodrobnostiORozpočtu[[#This Row],[Skutečné náklady]]","v":{"v":50,"d":"50 Kč"}}]
[null,"Poplatky za parkování","Doprava",null,null,{"$f":"PodrobnostiORozpočtu[[#This Row],[Předpokládané náklady]]-PodrobnostiORozpočtu[[#This Row],[Skutečné náklady]]","v":{"v":0,"d":"0 Kč"}},{"$f":"PodrobnostiORozpočtu[[#This Row],[Skutečné náklady]]","v":{"v":0,"d":"0 Kč"}}]
[null,"Splátka automobilu","Doprava",{"v":450,"d":"450 Kč"},{"v":450,"d":"450 Kč"},{"$f":"PodrobnostiORozpočtu[[#This Row],[Předpokládané náklady]]-PodrobnostiORozpočtu[[#This Row],[Skutečné náklady]]","v":{"v":0,"d":"0 Kč"}},{"$f":"PodrobnostiORozpočtu[[#This Row],[Skutečné náklady]]","v":{"v":450,"d":"450 Kč"}}]
[null,"Celkem",null,{"$f":"SUBTOTAL(109,PodrobnostiORozpočtu[Předpokládané náklady])","v":{"v":7915,"d":"7,915 Kč"}},{"$f":"SUBTOTAL(109,PodrobnostiORozpočtu[Skutečné náklady])","v":{"v":7860,"d":"7,860 Kč"}},{"$f":"SUBTOTAL(109,PodrobnostiORozpočtu[Rozdíl])","v":{"v":55,"d":"55 Kč"}}]

{"sheet":"Dodatečná data","index":2,"n_rows":15,"n_cols":5,"rows_kept":15}
[null,"Kontingenční tabulka pro přehled rozpočtu",null,null,"Vyhledávací seznam kategorií pro Podrobnosti o rozpočtu"]
[null,"Kategorie","Náklady",null,"Vyhledání rozpočtových kategorií"]
[null,"Děti",140,null,"Děti"]
[null,"Zábava",358,null,"Zábava"]
[null,"Jídlo",1320,null,"Jídlo"]
[null,"Dárky a charita",125,null,"Dárky a charita"]
[null,"Bydlení",2702,null,"Bydlení"]
[null,"Pojištění",900,null,"Pojištění"]
[null,"Půjčky",200,null,"Půjčky"]
[null,"Osobní péče",140,null,"Osobní péče"]
[null,"Domácí zvířata",100,null,"Domácí zvířata"]
[null,"Spoření nebo investice",200,null,"Spoření nebo investice"]
[null,"Daně",300,null,"Daně"]
[null,"Doprava",1375,null,"Doprava"]
[null,"Celkový součet",7860]